bitfinex/quotes_SOLUSD_20220114
["timestamp","ask_amount","ask_price","bid_price","bid_amount"]
[1642119338335,10.52602799,146.94,146.85,10.913]
[1642119338336,7.80302799,146.94,146.85,10.913]
[1642119338536,7.80302799,146.94,146.85,11.173]
[1642119338737,7.80302799,146.94,146.85,12.82299521]
[1642119338935,7.80302799,146.94,146.86,33.99968785]
[1642119339137,7.80302799,146.94,146.87,10.912]
[1642119339537,7.80302799,146.94,146.87,11.422]
[1642119340139,2.722,146.99,146.87,11.422]
[1642119340340,12.47859545,147.0,146.87,11.422]
[1642119340545,2.722,147.0,146.91,68.67]
[1642119340774,7.80302799,147.01,146.92,10.911]
[1642119340941,7.80302799,147.01,146.92,11.421]
[1642119341342,7.80302799,147.01,146.92,80.091]
[1642119341543,7.80302799,147.01,146.93,22.71349756]
[1642119341741,7.80302799,147.01,146.95,10.2054]
[1642119341941,13.80302799,147.01,146.95,10.2054]
[1642119342643,14.05302799,147.01,146.95,10.2054]
[1642119342845,6.25,147.01,146.95,10.2054]
[1642119343045,0.25,147.01,146.95,10.2054]
[1642119343241,6.25,147.01,146.95,10.2054]
[1642119343846,3.8993754,147.0,146.95,10.2054]
[1642119344044,4.1493754,147.0,146.95,10.2054]
[1642119344244,10.1493754,147.0,146.95,10.2054]
[1642119345247,3.8993754,146.99,146.95,10.2054]
[1642119345450,4.1493754,146.99,146.95,10.2054]
[1642119345648,12.8703754,146.99,146.92,10.911]
[1642119345848,10.20539999,146.94,146.92,2.721]
[1642119346049,3.0321,146.93,146.89,8.19]
[1642119346447,3.0321,146.93,146.9,27.94465729]
[1642119346649,3.0321,146.93,146.91,3.03219997]
[1642119346850,3.8993754,146.98,146.91,3.03219997]
[1642119347050,3.8993754,146.98,146.91,5.75419997]
[1642119347451,3.8993754,146.98,146.91,6.00419997]
[1642119348049,3.8993754,146.98,146.91,16.21199997]
[1642119348652,3.8993754,146.98,146.93,68.67]
[1642119348851,3.8993754,146.98,146.94,10.911]
[1642119349052,3.8993754,147.01,146.95,10.2031]
[1642119349254,3.8993754,147.01,146.96,10.911]
[1642119349450,3.8993754,147.01,146.97,23.04177897]
[1642119349650,3.8993754,147.01,146.98,10.911]
[1642119349851,3.8993754,147.01,146.98,8.19]
[1642119350054,0.34167813,147.04,146.99,3.03219997]
[1642119350055,3.8993754,147.03,146.99,3.03219997]
[1642119350250,3.8993754,147.03,147.0,25.06954929]
[1642119350451,9.8993754,147.03,147.0,25.06954929]
[1642119350652,3.8993754,147.03,147.0,25.06954929]
[1642119351353,3.8993754,147.03,147.01,3.03219997]
[1642119352554,4.1493754,147.03,147.01,3.03219997]
[1642119352752,3.0321,147.02,146.98,8.19]
[1642119352950,3.0321,147.02,146.95,8.19]
[1642119352951,3.2821,147.02,146.95,8.19]
[1642119353353,3.0321,147.02,146.96,10.2039]
[1642119353552,3.8993754,147.03,146.97,10.911]
[1642119353753,3.8993754,147.03,146.97,52.87299521]
[1642119353953,0.34167813,147.04,146.97,24.86899521]
[1642119354152,3.21478697,147.01,146.98,70.31999521]
[1642119354484,7.80302799,147.07,146.99,106.91529188]
[1642119354651,7.80302799,147.07,146.99,116.30635039]
[1642119354852,7.80302799,147.07,147.0,21.23906838]
[1642119355051,7.80302799,147.07,147.04,10.1966]
[1642119355255,7.80302799,147.07,147.05,93.99689425]
[1642119355453,7.80302799,147.07,147.06,3.03219997]
[1642119355653,11.69912057,147.07,147.06,3.03219997]
[1642119355854,11.69912057,147.07,147.04,8.19]
[1642119355855,4.14609258,147.07,147.04,8.19]
[1642119356655,3.89609258,147.07,147.05,26.27312753]
[1642119357061,3.89609258,147.06,147.05,32.27312753]
[1642119357455,2.72,147.14,147.05,42.47152753]
[1642119357656,8.72,147.14,147.05,42.47152753]
[1642119357857,2.72,147.14,147.05,42.47152753]
[1642119358055,2.72,147.14,147.05,36.47152753]
[1642119358256,2.72,147.14,147.05,36.72152753]
[1642119358455,2.97,147.14,147.05,36.72152753]
[1642119358854,2.97,147.14,147.05,36.47152753]
[1642119359759,8.97,147.14,147.05,36.47152753]
[1642119359957,9.23,147.14,147.05,36.47152753]
[1642119360462,9.23,147.14,147.05,13.23059997]
[1642119360657,9.23,147.14,147.0,2.719]
[1642119360858,24.964,147.14,147.0,2.719]
[1642119361056,24.964,147.14,146.95,8.19]
[1642119361057,1.64999521,147.13,146.95,8.19]
[1642119361257,79.58,147.12,146.95,8.19]
[1642119361460,22.9372961,147.11,146.96,22.60881372]
[1642119361657,2.72,147.1,146.96,22.60881372]
[1642119362058,2.97,147.1,146.96,22.60881372]
[1642119362263,10.2029,147.08,146.97,10.2026]
[1642119362461,2.72,147.07,146.96,25.32881372]
[1642119362965,2.97,147.07,146.96,25.32881372]
[1642119363275,2.97,147.07,146.96,22.60881372]
[1642119363566,10.77302799,147.07,146.96,22.60881372]
[1642119363767,16.77302799,147.07,146.96,22.60881372]
[1642119363968,10.52302799,147.07,146.96,22.85881372]
[1642119364169,7.80302799,147.08,146.97,12.55999521]
[1642119364369,7.80302799,147.08,146.97,24.40800508]
[1642119364569,7.80302799,147.08,146.98,1.64999521]
[1642119364771,7.80302799,147.08,147.02,10.1989]
[1642119364969,7.80302799,147.08,146.97,8.72]
[1642119365170,2.72,147.07,146.96,30.79881372]
[1642119365374,0.25,147.08,146.96,30.79881372]
[1642119365671,2.72,147.07,146.96,22.60881372]
[1642119365869,10.2032,147.07,146.94,18.3946]
[1642119366070,2.72,147.06,146.91,2.72]
[1642119366271,8.19,147.05,146.87,8.19]
[1642119366472,2.721,147.04,146.87,8.19]
[1642119366670,10.911,147.04,146.88,71.391]
[1642119366871,10.2078,147.01,146.89,38.18160816]
[1642119367071,2.722,147.0,146.9,2.722]
[1642119367369,0.25,147.04,146.9,4.37199521]
[1642119367573,2.721,147.03,146.9,4.37199521]
[1642119367974,8.971,147.03,146.91,10.2067]
[1642119369372,8.971,147.03,146.91,10.4567]
[1642119369591,9.231,147.03,146.91,10.4567]
[1642119369796,9.231,147.03,146.91,10.2067]
[1642119369996,8.981,147.03,146.9,2.722]
[1642119370197,68.67,147.02,146.9,2.722]
[1642119370497,2.721,147.01,146.9,2.722]
[1642119370699,2.721,147.02,146.9,2.722]
[1642119370898,6.0,147.01,146.89,29.99160816]
[1642119371097,2.721,147.02,146.9,12.9296]
[1642119371300,0.25,147.01,146.9,12.9296]
[1642119371499,8.971,147.02,146.9,12.9296]
[1642119372000,8.971,147.02,146.91,68.67]
[1642119372400,6.25,147.02,146.92,12.9274]
[1642119372799,0.25,147.02,146.92,12.9274]
[1642119373000,6.0,147.02,146.92,12.9274]
[1642119373203,10.2066,147.02,146.92,2.721]
[1642119373404,10.4566,147.02,146.92,2.721]
[1642119373601,7.11896078,147.0,146.9,2.721]
[1642119373805,10.912,146.99,146.86,2.722]
[1642119374001,24.147,146.99,146.86,2.722]
[1642119374201,24.147,146.99,146.85,2.722]
[1642119374403,10.2107,146.96,146.84,2.722]
[1642119374602,29.86664588,146.94,146.84,2.722]
[1642119374803,2.723,146.93,146.84,2.722]
[1642119375003,2.973,146.93,146.84,2.722]
[1642119375204,17.163,146.93,146.84,2.722]
[1642119375403,53.0,146.9,146.77,8.26]
[1642119375603,71.394,146.89,146.77,8.26]
[1642119375805,79.584,146.89,146.77,0.07]
[1642119376010,7.11896078,146.88,146.77,0.07]
[1642119376205,2.724,146.87,146.77,0.07]
[1642119376404,10.2189,146.85,146.77,0.07]
[1642119376604,2.724,146.84,146.77,0.07]
[1642119377003,8.974,146.84,146.77,0.07]
[1642119377403,2.974,146.84,146.77,0.07]
[1642119377804,13.1936,146.84,146.77,0.07]
[1642119378804,19.1936,146.84,146.77,0.07]
[1642119379404,27.3836,146.84,146.77,0.07]
[1642119381010,10.2244,146.8,146.77,0.07]
[1642119381207,5.7571,146.79,146.77,0.07]
[1642119381508,3.0321,146.79,146.77,0.07]
[1642119381707,3.2821,146.79,146.77,0.07]
[1642119383506,3.0321,146.79,146.77,0.07]
[1642119383910,2.725,146.9,146.78,2.725]
[1642119384307,1.95108224,146.81,146.79,10.2162]
[1642119384510,1.95108224,146.81,146.8,3.03219997]
[1642119384809,1.95108224,146.81,146.8,27.62901326]
[1642119385009,12.48779617,146.94,146.8,3.54219997]
[1642119385210,5.85269283,146.92,146.8,9.54219997]
[1642119385409,5.85269283,146.92,146.86,10.2106]
[1642119385810,5.85269283,146.92,146.86,10.4706]
[1642119386012,5.85269283,146.92,146.87,27.83821483]
[1642119386413,6.10269283,146.92,146.87,27.83821483]
[1642119386714,2.723,146.96,146.88,10.2097]
[1642119386917,5.85269283,146.97,146.88,10.2097]
[1642119387117,5.85269283,146.97,146.89,2.722]
[1642119387316,5.85269283,146.97,146.89,4.37199521]
[1642119387516,5.85269283,147.0,146.89,10.88199521]
[1642119387719,5.85269283,147.0,146.93,10.2056]
[1642119387918,5.85269283,147.0,146.94,27.59361253]
[1642119388340,5.85269283,147.0,146.89,9.232]
[1642119388537,2.722,146.99,146.89,6.51]
[1642119388937,2.722,146.99,146.89,0.51]
[1642119389137,5.85269283,147.02,146.92,10.2071]
[1642119389138,2.722,147.01,146.92,10.2071]
[1642119389340,8.722,147.01,146.9,2.722]
[1642119389539,14.998,147.01,146.88,31.70879143]
[1642119389740,14.998,147.01,146.88,37.70879143]
[1642119390541,10.208,147.0,146.88,47.91919143]
[1642119390741,16.4478773,146.99,146.88,31.70879143]
[1642119390943,22.6978773,146.99,146.88,31.70879143]
[1642119391142,22.6978773,146.99,146.88,23.51879143]
[1642119391743,10.2107,146.97,146.88,23.51879143]
[1642119391944,2.722,146.96,146.88,23.76879143]
[1642119392141,10.4607,146.97,146.88,23.76879143]
[1642119392142,2.972,146.97,146.88,23.76879143]
[1642119392342,0.25,146.96,146.88,23.76879143]
[1642119392543,2.722,146.98,146.88,23.76879143]
[1642119392945,8.722,146.98,146.88,23.76879143]
[1642119393143,10.2107,146.96,146.88,33.97919143]
[1642119393546,8.722,146.98,146.88,33.97919143]
[1642119393945,8.972,146.98,146.88,33.97919143]
[1642119394444,8.972,146.98,146.88,42.16919143]
[1642119394445,2.972,146.98,146.88,42.16919143]
[1642119395243,13.1818,146.98,146.88,42.16919143]
[1642119395644,13.1818,146.98,146.88,41.91919143]
[1642119396044,13.1818,146.98,146.88,42.16919143]
[1642119396451,13.1818,146.98,146.88,33.97919143]
[1642119396851,13.1818,146.98,146.89,8.19]
[1642119396852,2.982,146.98,146.89,8.19]
[1642119397046,5.85269283,146.99,146.93,10.2069]
[1642119397447,5.85269283,146.99,146.93,10.4569]
[1642119397845,5.85269283,146.99,146.93,10.7169]
[1642119398045,5.85269283,146.99,146.96,10.2046]
[1642119398245,5.85269283,147.03,146.97,6.06439994]
[1642119399050,5.85269283,147.04,146.97,6.32439994]
[1642119399258,5.85269283,147.04,146.97,6.06439994]
[1642119399484,5.85269283,147.04,146.98,10.2035]
[1642119400053,6.10269283,147.04,146.98,10.2035]
[1642119400652,6.10269283,147.04,146.94,76.0479983]
[1642119400853,37.09091381,147.04,146.94,42.0354983]
[1642119401053,37.09091381,147.04,146.94,39.3144983]
[1642119401054,2.721,147.03,146.94,39.3144983]
[1642119401459,3.231,147.03,146.94,39.3144983]
[1642119401659,2.981,147.03,146.94,39.3144983]
[1642119401853,2.721,147.03,146.94,45.5744983]
[1642119402055,2.721,147.03,146.94,56.0306983]
[1642119402257,5.85269283,147.04,146.95,2.721]
[1642119402558,5.85269283,147.04,146.95,17.421]
[1642119402759,5.85269283,147.04,146.96,68.67]
[1642119403059,5.85269283,147.04,146.97,10.2039]
[1642119403265,5.85269283,147.04,146.97,14.57389521]
[1642119403459,5.85269283,147.04,146.97,21.08389521]
[1642119403655,5.85269283,147.06,146.97,29.27389521]
[1642119403855,5.85269283,147.06,146.97,97.94389521]
[1642119404056,5.85269283,147.06,146.98,1.64999521]
[1642119404262,5.85269283,147.06,147.02,10.2002]
[1642119404460,5.85269283,147.06,147.02,16.7102]
[1642119404662,2.72,147.1,147.02,16.7102]
[1642119404663,5.85269283,147.08,147.02,16.7102]
[1642119404957,5.85269283,147.08,147.03,26.80497506]
[1642119405457,6.10269283,147.08,147.03,32.80497506]
[1642119405659,0.25,147.08,147.03,32.80497506]
[1642119405860,0.51,147.08,147.03,32.80497506]
[1642119406060,3.23,147.1,147.03,32.80497506]
[1642119406261,3.23,147.1,147.03,43.00447506]
[1642119406459,3.23,147.1,147.03,37.00447506]
[1642119406762,3.23,147.1,147.03,10.1995]
[1642119406992,3.23,147.1,146.99,2.72]
[1642119407160,3.23,147.1,147.0,0.25]
[1642119407561,13.4311,147.1,147.0,30.15067211]
[1642119408762,12.9211,147.1,147.0,98.82067211]
[1642119408964,2.72,147.1,147.0,123.21257211]
[1642119409569,2.72,147.1,147.01,2.72]
[1642119409764,13.64770014,147.11,147.01,2.72]
[1642119410061,5.85269283,147.11,147.01,9.23]
[1642119410262,6.10269283,147.11,147.01,9.23]
[1642119410662,6.10269283,147.11,147.04,10.199]
[1642119410862,6.10269283,147.11,147.04,78.869]
[1642119411065,6.10269283,147.11,147.04,85.379]
[1642119411463,6.10269283,147.11,147.04,93.569]
[1642119411662,6.10269283,147.11,147.04,24.639]
[1642119411865,0.25,147.11,147.04,24.899]
[1642119412063,8.82269283,147.13,147.04,18.899]
[1642119412265,5.85269283,147.13,147.04,18.899]
[1642119413073,5.85269283,147.13,147.04,26.54899521]
[1642119413464,5.85269283,147.13,147.05,71.389]
[1642119413665,5.85269283,147.13,147.09,10.1954]
[1642119413866,5.85269283,147.15,147.1,22.44466815]
[1642119414066,5.85269283,147.15,147.1,91.36466815]
[1642119414264,7.79080711,147.16,147.11,4.36799521]
[1642119414496,7.79080711,147.16,147.12,68.67]
[1642119414672,7.79080711,147.16,147.13,2.718]
[1642119414967,0.045,147.17,147.13,8.718]
[1642119415268,0.045,147.17,147.13,2.718]
[1642119416266,0.045,147.17,147.14,10.1911]
[1642119416472,7.79080711,147.23,147.15,6.06439994]
[1642119416865,7.79080711,147.23,147.15,6.31439994]
[1642119417076,7.79080711,147.23,147.16,8.19]
[1642119417265,7.79080711,147.23,147.17,68.67]
[1642119417466,7.79080711,147.23,147.18,10.1898]
[1642119417666,7.79080711,147.23,147.15,8.19]
[1642119417866,2.717,147.22,147.15,8.19]
[1642119418066,2.717,147.22,147.11,8.19]
[1642119418466,15.82636794,147.22,147.11,32.11245753]
[1642119418667,21.82636794,147.22,147.11,32.11245753]
[1642119418865,2.717,147.22,147.11,32.11245753]
[1642119419067,48.0901,147.27,147.11,32.11245753]
[1642119419068,2.718,147.26,147.12,2.718]
[1642119419268,2.717,147.28,147.14,68.67]
[1642119419469,2.717,147.28,147.15,8.19]
[1642119419868,26.67689107,147.28,147.15,83.12]
[1642119420066,26.67689107,147.28,147.15,76.86]
[1642119420266,26.92689107,147.28,147.15,76.86]
[1642119420470,10.1901,147.26,147.16,10.1901]
[1642119420666,2.717,147.25,147.16,10.1901]
[1642119420866,0.25,147.26,147.16,10.1901]
[1642119421066,2.717,147.25,147.16,10.1901]
[1642119421267,2.717,147.26,147.16,10.1901]
[1642119421568,2.967,147.26,147.18,10.1902]
[1642119422270,2.967,147.26,147.18,79.1202]
[1642119422468,3.007,147.26,147.18,78.8602]
[1642119422869,0.29,147.26,147.18,78.8602]
[1642119423070,0.04,147.26,147.18,93.3102]
[1642119423283,0.04,147.26,147.18,94.96019521]
[1642119423471,0.04,147.26,147.18,95.21019521]
[1642119423670,7.78527649,147.29,147.19,2.717]
[1642119423970,7.649e-05,147.29,147.25,24.06762209]
[1642119424175,7.649e-05,147.29,147.26,2.716]
[1642119424373,7.649e-05,147.29,147.27,3.03219997]
[1642119424579,7.649e-05,147.29,147.28,2.715]
[1642119424772,7.649e-05,147.29,147.27,5.99719997]
[1642119424969,0.17106231,147.3,147.27,5.99719997]
[1642119425170,0.17106231,147.3,147.27,16.17819997]
[1642119425368,52.34379617,147.42,147.27,16.17819997]
[1642119425369,2.715,147.39,147.27,16.17819997]
[1642119425569,2.715,147.39,147.27,15.92819997]
[1642119425769,8.715,147.39,147.27,15.92819997]
[1642119426571,18.8969,147.39,147.27,15.92819997]
[1642119427372,19.1469,147.39,147.27,15.92819997]
[1642119427572,9.225,147.39,147.27,13.21319997]
[1642119428272,8.965,147.39,147.27,13.21319997]
[1642119428475,8.965,147.39,147.3,10.1814]
[1642119428873,8.715,147.39,147.3,10.1814]
[1642119429074,2.715,147.39,147.3,10.1814]
[1642119429276,2.714,147.4,147.3,18.3714]
[1642119429520,73.2625,147.41,147.31,71.384]
[1642119429521,2.714,147.41,147.31,71.384]
[1642119429720,12.47779617,147.42,147.36,10.1773]
[1642119429932,3.1133256,147.43,147.36,10.1773]
[1642119430522,3.1133256,147.43,147.36,12.08729521]
[1642119431222,9.76379617,147.45,147.37,8.19]
[1642119431422,15.62599335,147.47,147.4,10.1729]
[1642119431627,0.07962902,147.48,147.4,10.1729]
[1642119432322,0.07962902,147.48,147.41,8.19]
[1642119433252,0.07962902,147.48,147.44,10.1721]
[1642119433923,0.07962902,147.48,147.44,36.0653247]
[1642119434529,2.712,147.52,147.44,36.0653247]
[1642119434727,2.712,147.52,147.44,44.2553247]
[1642119434926,2.712,147.52,147.44,45.90531991]
[1642119435428,2.712,147.52,147.44,44.2553247]
[1642119435625,2.712,147.52,147.44,18.3621]
[1642119436026,2.962,147.52,147.44,18.3621]
[1642119436226,8.962,147.52,147.44,18.3621]
[1642119436426,2.962,147.52,147.44,18.3621]
[1642119436629,8.962,147.52,147.44,18.3621]
[1642119436827,9.222,147.52,147.44,18.3621]
[1642119437730,8.972,147.52,147.44,18.3621]
[1642119437927,2.712,147.52,147.45,1.64999521]
[1642119438128,0.34056062,147.53,147.48,10.1688]
[1642119438530,0.34056062,147.53,147.45,2.712]
[1642119438730,0.34056062,147.53,147.44,8.19]
[1642119438928,2.712,147.52,147.44,8.19]
[1642119439130,7.5809452,147.51,147.44,18.3616]
[1642119439330,2.962,147.52,147.44,18.3616]
[1642119439529,0.25,147.51,147.44,18.3616]
[1642119439932,0.25,147.51,147.44,8.19]
[1642119440128,0.25,147.51,147.4,21.0763]
[1642119440334,2.712,147.5,147.4,8.19]
[1642119440530,22.7899913,147.49,147.4,8.19]
[1642119440962,23.0399913,147.49,147.4,8.19]
[1642119441157,2.712,147.5,147.41,1.64999521]
[1642119441357,0.34056062,147.53,147.42,10.902]
[1642119441557,0.34056062,147.53,147.42,11.152]
[1642119441760,0.34056062,147.53,147.43,1.64999521]
[1642119441960,0.34056062,147.53,147.44,10.902]
[1642119442863,0.34056062,147.53,147.47,10.1695]
[1642119444963,3.88471061,147.52,147.48,2.711]
[1642119445160,3.88471061,147.52,147.5,10.1674]
[1642119445362,3.88471061,147.52,147.51,6.06439994]
[1642119445962,0.34056062,147.53,147.51,6.06439994]
[1642119446569,13.47870796,147.53,147.51,6.06439994]
[1642119447063,0.59056062,147.53,147.51,6.06439994]
[1642119447466,0.34056062,147.53,147.51,6.06439994]
[1642119447663,0.34056062,147.53,147.49,10.1687]
[1642119447865,3.88451773,147.52,147.49,10.1687]
[1642119448264,7.76877047,147.52,147.49,10.1687]
[1642119448967,7.76877047,147.52,147.46,36.6048]
[1642119449268,3.88451773,147.52,147.46,12.471]
[1642119449466,3.88451773,147.52,147.46,9.76]
[1642119449966,7.76877047,147.52,147.46,9.76]
[1642119450168,7.76877047,147.52,147.46,19.9303]
[1642119450966,7.76877047,147.52,147.46,21.83029521]
[1642119451168,7.76877047,147.52,147.46,20.1803]
[1642119451567,7.76877047,147.52,147.46,19.9303]
[1642119452669,3.109962,147.5,147.46,9.76]
[1642119452870,3.109962,147.5,147.44,2.712]
[1642119453071,2.712,147.49,147.44,2.712]
[1642119453275,2.712,147.49,147.36,9.76]
[1642119453468,2.962,147.49,147.36,9.76]
[1642119453671,9.76,147.48,147.33,30.48875692]
[1642119453869,9.76,147.48,147.34,10.1784]
[1642119453870,10.1791,147.46,147.34,10.1784]
[1642119454071,3.02830517,147.45,147.33,2.713]
[1642119454275,122.06,147.43,147.32,2.99722356]
[1642119454470,12.474,147.42,147.29,506.86281831]
[1642119454671,12.474,147.42,147.26,3.00596641]
[1642119454872,10.1828,147.4,147.26,3.00596641]
[1642119455072,12.474,147.39,147.26,3.00596641]
[1642119455472,18.724,147.39,147.26,4.65596162]
[1642119455774,12.724,147.39,147.28,10.1831]
[1642119455975,16.6100074,147.39,147.28,10.1831]
[1642119457174,3.8860074,147.38,147.27,2.715]
[1642119457372,2.715,147.37,147.26,12.899]
[1642119457573,2.965,147.37,147.26,10.184]
[1642119458277,13.15,147.37,147.25,2.715]
[1642119458475,13.15,147.37,147.24,10.1854]
[1642119458975,3.88851486,147.36,147.24,10.1854]
[1642119459178,16.52063923,147.35,147.22,2.715]
[1642119459476,32.95713923,147.35,147.22,2.715]
[1642119459677,32.95713923,147.35,147.19,9.76]
[1642119459875,9.76,147.34,147.19,9.76]
[1642119460074,2.716,147.33,147.19,9.76]
[1642119460275,9.76,147.32,147.19,9.76]
[1642119460476,2.716,147.31,147.19,9.76]
[1642119460675,2.716,147.31,147.19,11.40999521]
[1642119460877,2.966,147.31,147.19,19.9493]
[1642119461078,2.716,147.31,147.19,20.1993]
[1642119461289,3.88851486,147.34,147.2,1.64999521]
[1642119461478,3.88851486,147.34,147.2,17.91999521]
[1642119461677,3.88851486,147.34,147.2,28.65289397]
[1642119461876,3.109962,147.24,147.21,1.64999521]
[1642119462078,2.715,147.37,147.27,10.1828]
[1642119462277,26.46387284,147.36,147.27,10.1828]
[1642119462480,2.715,147.35,147.24,27.10585135]
[1642119462883,2.965,147.35,147.22,9.76]
[1642119463080,2.965,147.35,147.25,10.1847]
[1642119463681,2.965,147.35,147.23,2.715]
[1642119463883,2.965,147.35,147.22,25.2773241]
[1642119464081,2.965,147.35,147.23,2.715]
[1642119464281,2.715,147.35,147.25,10.1851]
[1642119464482,26.46387284,147.36,147.26,2.715]
[1642119465085,26.72387284,147.36,147.24,2.715]
[1642119465284,2.715,147.39,147.22,33.4273241]
[1642119465285,2.715,147.39,147.27,10.1834]
[1642119465485,8.715,147.39,147.28,2.714]
[1642119465785,47.2927,147.4,147.28,8.714]
[1642119465987,47.2927,147.4,147.28,8.964]
[1642119466187,25.72494236,147.38,147.28,8.714]
[1642119466385,25.72494236,147.38,147.31,10.1806]
[1642119467026,25.72494236,147.38,147.28,2.714]
[1642119467188,2.714,147.37,147.25,10.864]
[1642119467388,2.714,147.37,147.29,10.1821]
[1642119467587,2.964,147.37,147.25,10.864]
[1642119467788,2.964,147.37,147.25,2.714]
[1642119467988,17.311,147.37,147.23,2.715]
[1642119468188,19.461,147.37,147.21,2.715]
[1642119468389,25.461,147.37,147.2,41.90463499]
[1642119468789,35.6459,147.37,147.23,10.1861]
[1642119469390,3.88907178,147.36,147.23,10.1861]
[1642119469599,79.535,147.35,147.23,10.1861]
[1642119469991,79.785,147.35,147.23,10.1861]
[1642119470191,11.115,147.35,147.23,10.1861]
[1642119471291,3.88907178,147.34,147.23,10.1861]
[1642119471491,2.715,147.33,147.23,10.1861]
[1642119471691,11.2606643,147.32,147.23,10.1861]
[1642119472092,11.5106643,147.32,147.23,10.1861]
[1642119472293,0.25,147.32,147.23,10.1861]
[1642119472893,0.25,147.32,147.23,12.9021]
[1642119473195,0.25,147.34,147.23,12.9021]
[1642119473393,2.966,147.36,147.23,13.1521]
[1642119473596,2.966,147.36,147.27,10.1833]
[1642119473996,2.966,147.36,147.28,30.24750883]
[1642119474826,2.966,147.36,147.28,40.43060883]
[1642119474827,0.25,147.36,147.28,40.43060883]
[1642119475027,2.965,147.38,147.28,40.43060883]
[1642119475323,3.225,147.38,147.28,40.43060883]
[1642119475822,3.88801423,147.37,147.28,40.43060883]
[1642119476025,2.715,147.36,147.28,40.43060883]
[1642119476227,2.715,147.36,147.28,10.1831]
[1642119476424,2.965,147.36,147.28,10.1831]
[1642119477224,3.225,147.36,147.26,10.1841]
[1642119477624,71.895,147.36,147.25,2.715]
[1642119477824,17.375,147.36,147.25,2.715]
[1642119478026,17.375,147.36,147.18,2.715]
[1642119478225,19.02499521,147.36,147.18,2.715]
[1642119478929,68.67,147.35,147.18,2.715]
[1642119479129,68.67,147.33,147.15,46.7463]
[1642119479326,10.866,147.32,147.13,41.91007176]
[1642119479525,72.42139521,147.32,147.13,41.91007176]
[1642119479725,72.42139521,147.32,147.13,7.94017176]
[1642119479726,7.57914163,147.3,147.13,7.94017176]
[1642119479926,68.67,147.28,147.13,5.22417176]
[1642119480228,10.193,147.25,147.14,10.1924]
[1642119480424,25.99237061,147.24,147.14,10.1924]
[1642119480926,26.24237061,147.24,147.14,10.1924]
[1642119481725,105.10617061,147.24,147.12,2.717]
[1642119481928,105.10617061,147.24,147.11,8.15]
[1642119482139,111.10617061,147.24,147.1,2.717]
[1642119482338,111.10617061,147.24,147.1,0.25]
[1642119482538,111.10617061,147.24,147.11,2.717]
[1642119483138,111.10617061,147.24,147.11,12.9113]
[1642119483340,105.10617061,147.24,147.11,12.9113]
[1642119483840,36.43617061,147.24,147.11,12.9113]
[1642119485141,35.93617061,147.24,147.11,12.9113]
[1642119485544,10.1958,147.21,147.1,2.717]
[1642119485772,10.1958,147.21,147.06,5.22417176]
[1642119485773,2.718,147.2,147.07,2.718]
[1642119485941,2.968,147.2,147.07,2.718]
[1642119486143,8.968,147.2,147.07,2.718]
[1642119486343,13.71023605,147.19,147.07,33.59348011]
[1642119486545,0.25,147.19,147.07,33.59348011]
[1642119486744,2.718,147.2,147.08,10.1969]
[1642119486944,32.2283,147.23,147.09,68.67]
[1642119486945,8.15,147.23,147.09,68.67]
[1642119487143,2.718,147.27,147.09,90.26923765]
[1642119487344,5.83188143,147.28,147.09,98.42923286]
[1642119487544,5.83188143,147.28,147.1,36.5948855]
[1642119487749,5.83188143,147.28,147.11,10.867]
[1642119487944,2.717,147.29,147.11,28.10823765]